[Event "Grandmaster Triathlon - Blitz (GM1)"]
[Site "Biel, Switzerland"]
[Date "2026.07.19"]
[Round "3.3"]
[White "Le, Quang Liem"]
[Black "Bluebaum, Matthias"]
[Result "1/2-1/2"]
[TimeControl "3 min + 2 sec"]
[WhiteTitle "-"]
[BlackTitle "-"]
[WhiteFideId "12401137"]
[BlackFideId "24651516"]
[WhiteElo "2690"]
[BlackElo "2634"]

1. c4 {[%clk 00:03:03]} e6 {[%clk 00:03:03]} {[%emt 00:00:02]} 2. Nc3 {[%clk
00:03:04]} {[%emt 00:00:01]} d5 {[%clk 00:03:04]} {[%emt 00:00:01]} 3. d4
{[%clk 00:03:05]} {[%emt 00:00:01]} Bb4 {[%clk 00:03:06]} 4. a3 {[%clk
00:03:03]} {[%emt 00:00:04]} Bxc3+ {[%clk 00:03:06]} 5. bxc3 {[%clk 00:03:04]}
Nf6 {[%clk 00:03:07]} {[%emt 00:00:01]} 6. cxd5 {[%clk 00:03:05]} {[%emt
00:00:02]} exd5 {[%clk 00:03:08]} {[%emt 00:00:01]} 7. e3 {[%clk 00:03:06]} c5
{[%clk 00:03:09]} {[%emt 00:00:01]} 8. Bd3 {[%clk 00:03:06]} {[%emt 00:00:02]}
Bg4 {[%clk 00:03:10]} {[%emt 00:00:01]} 9. Ne2 {[%clk 00:03:01]} {[%emt
00:00:07]} Nc6 {[%clk 00:03:11]} {[%emt 00:00:01]} 10. O-O {[%clk 00:03:00]}
{[%emt 00:00:02]} O-O {[%clk 00:03:11]} {[%emt 00:00:02]} 11. f3 {[%clk
00:02:50]} {[%emt 00:00:11]} Bh5 {[%clk 00:03:12]} {[%emt 00:00:02]} 12. Ng3
{[%clk 00:02:40]} {[%emt 00:00:11]} Bg6 {[%clk 00:03:13]} {[%emt 00:00:02]} 13.
Ra2 {[%clk 00:02:41]} {[%emt 00:00:01]} Qa5 {[%clk 00:03:04]} {[%emt 00:00:11]}
14. Rc2 {[%clk 00:01:53]} {[%emt 00:00:50]} Rfe8 {[%clk 00:03:04]} {[%emt
00:00:02]} 15. Kh1 {[%clk 00:01:54]} {[%emt 00:00:01]} Rac8 {[%clk 00:02:59]}
{[%emt 00:00:07]} 16. h3 {[%clk 00:01:43]} {[%emt 00:00:12]} Qa4 {[%clk
00:02:55]} {[%emt 00:00:07]} 17. Bf5 {[%clk 00:01:32]} {[%emt 00:00:12]} Ne7
{[%clk 00:02:33]} {[%emt 00:00:24]} 18. Bxg6 {[%clk 00:01:28]} {[%emt
00:00:06]} hxg6 {[%clk 00:02:23]} {[%emt 00:00:12]} 19. Rb2 {[%clk 00:01:27]}
{[%emt 00:00:03]} Qxd1 {[%clk 00:02:07]} {[%emt 00:00:19]} 20. Rxd1 {[%clk
00:01:28]} {[%emt 00:00:01]} b6 {[%clk 00:02:08]} {[%emt 00:00:01]} 21. e4
{[%clk 00:01:28]} {[%emt 00:00:02]} cxd4 {[%clk 00:02:03]} {[%emt 00:00:07]} 22.
cxd4 {[%clk 00:01:29]} {[%emt 00:00:01]} Rc4 {[%clk 00:01:55]} {[%emt
00:00:10]} 23. e5 {[%clk 00:01:26]} {[%emt 00:00:04]} Nd7 {[%clk 00:01:56]}
{[%emt 00:00:01]} 24. Ne2 {[%clk 00:01:20]} {[%emt 00:00:08]} Rec8 {[%clk
00:01:57]} {[%emt 00:00:01]} 25. Kg1 {[%clk 00:01:19]} {[%emt 00:00:03]} Nf8
{[%clk 00:01:52]} {[%emt 00:00:07]} 26. Kf2 {[%clk 00:01:17]} {[%emt 00:00:04]}
Ne6 {[%clk 00:01:53]} {[%emt 00:00:01]} 27. Be3 {[%clk 00:01:16]} {[%emt
00:00:02]} g5 {[%clk 00:01:50]} {[%emt 00:00:05]} 28. g4 {[%clk 00:01:15]}
{[%emt 00:00:03]} Ng6 {[%clk 00:01:51]} {[%emt 00:00:01]} 29. Rb5 {[%clk
00:01:08]} {[%emt 00:00:09]} Rc2 {[%clk 00:01:48]} {[%emt 00:00:05]} 30. Rd2
{[%clk 00:01:06]} {[%emt 00:00:04]} Rxd2 {[%clk 00:01:41]} {[%emt 00:00:09]} 31.
Bxd2 {[%clk 00:01:07]} Rc2 {[%clk 00:01:42]} {[%emt 00:00:01]} 32. Ke1 {[%clk
00:01:08]} {[%emt 00:00:01]} Ne7 {[%clk 00:01:23]} {[%emt 00:00:21]} 33. Kd1
{[%clk 00:01:03]} {[%emt 00:00:06]} Rc4 {[%clk 00:01:23]} {[%emt 00:00:03]} 34.
Rb4 {[%clk 00:00:58]} {[%emt 00:00:06]} Rxb4 {[%clk 00:01:04]} {[%emt
00:00:21]} 35. Bxb4 {[%clk 00:00:48]} {[%emt 00:00:13]} Nc6 {[%clk 00:01:05]}
{[%emt 00:00:01]} 36. Bc3 {[%clk 00:00:48]} b5 {[%clk 00:00:59]} {[%emt
00:00:08]} 37. Kd2 {[%clk 00:00:48]} {[%emt 00:00:02]} a5 {[%clk 00:01:00]}
{[%emt 00:00:01]} 38. Kd3 {[%clk 00:00:49]} f6 {[%clk 00:00:47]} {[%emt
00:00:15]} 39. exf6 {[%clk 00:00:47]} {[%emt 00:00:05]} gxf6 {[%clk 00:00:48]}
{[%emt 00:00:01]} 40. Be1 {[%clk 00:00:46]} {[%emt 00:00:02]} b4 {[%clk
00:00:49]} {[%emt 00:00:02]} 41. axb4 {[%clk 00:00:47]} axb4 {[%clk 00:00:48]}
{[%emt 00:00:03]} 42. h4 {[%clk 00:00:47]} {[%emt 00:00:02]} gxh4 {[%clk
00:00:38]} {[%emt 00:00:12]} 43. Bxh4 {[%clk 00:00:48]} Kf7 {[%clk 00:00:33]}
{[%emt 00:00:07]} 44. Be1 {[%clk 00:00:46]} {[%emt 00:00:03]} Kg6 {[%clk
00:00:29]} {[%emt 00:00:07]} 45. Bd2 {[%clk 00:00:40]} {[%emt 00:00:07]} f5
{[%clk 00:00:30]} {[%emt 00:00:02]} 46. gxf5+ {[%clk 00:00:41]} {[%emt
00:00:01]} Kxf5 {[%clk 00:00:31]} {[%emt 00:00:01]} 47. Ng3+ {[%clk 00:00:42]}
{[%emt 00:00:01]} Kg6 {[%clk 00:00:32]} {[%emt 00:00:01]} 48. Be3 {[%clk
00:00:42]} {[%emt 00:00:01]} Ne7 {[%clk 00:00:25]} {[%emt 00:00:10]} 49. Ne2
{[%clk 00:00:40]} {[%emt 00:00:04]} Nc6 {[%clk 00:00:25]} {[%emt 00:00:02]} 50.
Bd2 {[%clk 00:00:37]} {[%emt 00:00:05]} Kf5 {[%clk 00:00:25]} {[%emt 00:00:02]}
51. Bc1 {[%clk 00:00:35]} {[%emt 00:00:04]} Kg6 {[%clk 00:00:20]} {[%emt
00:00:07]} 52. Be3 {[%clk 00:00:35]} {[%emt 00:00:02]} Kf5 {[%clk 00:00:20]}
{[%emt 00:00:03]} 53. Ng3+ {[%clk 00:00:36]} Kg6 {[%clk 00:00:21]} {[%emt
00:00:01]} 54. Ne2 {[%clk 00:00:35]} {[%emt 00:00:03]} Kf5 {[%clk 00:00:22]}
{[%emt 00:00:01]} 55. Ng3+ {[%clk 00:00:35]} {[%emt 00:00:02]} 1/2-1/2

[Event "Grandmaster Triathlon - Blitz (GM1)"]
[Site "Biel, Switzerland"]
[Date "2026.07.19"]
[Round "4.1"]
[White "Martinez Alcantara, Jose Eduardo"]
[Black "Aronian, Levon"]
[Result "0-1"]
[TimeControl "3 min + 2 sec"]
[WhiteTitle "-"]
[BlackTitle "-"]
[WhiteFideId "3805662"]
[BlackFideId "13300474"]
[WhiteElo "2641"]
[BlackElo "2700"]

1. e4 {[%clk 00:03:03]} e5 {[%clk 00:03:04]} {[%emt 00:00:01]} 2. Nf3 {[%clk
00:03:04]} {[%emt 00:00:01]} Nf6 {[%clk 00:03:04]} {[%emt 00:00:01]} 3. Nc3
{[%clk 00:03:04]} {[%emt 00:00:01]} d6 {[%clk 00:03:05]} {[%emt 00:00:01]} 4.
Bc4 {[%clk 00:03:04]} {[%emt 00:00:02]} Be7 {[%clk 00:03:05]} {[%emt 00:00:02]}
5. d3 {[%clk 00:03:05]} {[%emt 00:00:01]} c6 {[%clk 00:02:58]} {[%emt
00:00:10]} 6. a3 {[%clk 00:03:05]} {[%emt 00:00:01]} Nbd7 {[%clk 00:02:53]}
{[%emt 00:00:07]} 7. Ba2 {[%clk 00:03:04]} {[%emt 00:00:03]} h6 {[%clk
00:02:50]} {[%emt 00:00:05]} 8. Be3 {[%clk 00:03:00]} {[%emt 00:00:06]} Nf8
{[%clk 00:02:46]} {[%emt 00:00:06]} 9. d4 {[%clk 00:02:55]} {[%emt 00:00:07]}
Qc7 {[%clk 00:02:39]} {[%emt 00:00:09]} 10. Qd3 {[%clk 00:02:47]} {[%emt
00:00:08]} Be6 {[%clk 00:02:27]} {[%emt 00:00:15]} 11. d5 {[%clk 00:02:40]}
{[%emt 00:00:09]} Bd7 {[%clk 00:01:49]} {[%emt 00:00:40]} 12. h3 {[%clk
00:02:39]} {[%emt 00:00:03]} c5 {[%clk 00:01:46]} {[%emt 00:00:06]} 13. a4
{[%clk 00:02:39]} {[%emt 00:00:01]} Ng6 {[%clk 00:01:45]} {[%emt 00:00:03]} 14.
g3 {[%clk 00:02:39]} {[%emt 00:00:02]} O-O {[%clk 00:01:30]} {[%emt 00:00:17]}
15. Bc4 {[%clk 00:02:38]} {[%emt 00:00:02]} Qc8 {[%clk 00:01:16]} {[%emt
00:00:16]} 16. Ng1 {[%clk 00:01:51]} {[%emt 00:00:49]} a6 {[%clk 00:01:05]}
{[%emt 00:00:14]} 17. a5 {[%clk 00:01:52]} {[%emt 00:00:01]} Ne8 {[%clk
00:01:01]} {[%emt 00:00:05]} 18. h4 {[%clk 00:01:44]} {[%emt 00:00:10]} f5
{[%clk 00:00:55]} {[%emt 00:00:08]} 19. h5 {[%clk 00:01:28]} {[%emt 00:00:18]}
Nh8 {[%clk 00:00:56]} 20. Nge2 {[%clk 00:01:21]} {[%emt 00:00:10]} Nf7 {[%clk
00:00:52]} {[%emt 00:00:07]} 21. f3 {[%clk 00:01:10]} {[%emt 00:00:13]} Ng5
{[%clk 00:00:49]} {[%emt 00:00:04]} 22. Bxg5 {[%clk 00:00:57]} {[%emt
00:00:15]} Bxg5 {[%clk 00:00:50]} 23. f4 {[%clk 00:00:58]} exf4 {[%clk
00:00:31]} {[%emt 00:00:21]} 24. gxf4 {[%clk 00:00:59]} {[%emt 00:00:01]} fxe4
{[%clk 00:00:32]} {[%emt 00:00:01]} 25. Nxe4 {[%clk 00:00:59]} {[%emt
00:00:01]} Bxf4 {[%clk 00:00:33]} {[%emt 00:00:01]} 26. Nxf4 {[%clk 00:00:46]}
{[%emt 00:00:15]} Rxf4 {[%clk 00:00:34]} {[%emt 00:00:01]} 27. Qe3 {[%clk
00:00:48]} Rf5 {[%clk 00:00:26]} {[%emt 00:00:10]} 28. O-O-O {[%clk 00:00:47]}
{[%emt 00:00:03]} Qd8 {[%clk 00:00:26]} {[%emt 00:00:02]} 29. Rhg1 {[%clk
00:00:42]} {[%emt 00:00:07]} Qh4 {[%clk 00:00:22]} {[%emt 00:00:06]} 30. Kb1
{[%clk 00:00:28]} {[%emt 00:00:16]} Re5 {[%clk 00:00:23]} 31. Bd3 {[%emt
00:00:27]} Bf5 {[%clk 00:00:17]} 32. Qg3 {[%clk 00:00:05]} {[%emt 00:00:08]}
Qxg3 {[%clk 00:00:14]} {[%emt 00:00:05]} 33. Nxg3 {[%clk 00:00:06]} {[%emt
00:00:01]} Bxd3 {[%clk 00:00:15]} 34. Rxd3 {[%clk 00:00:08]} Nf6 {[%clk
00:00:16]} 35. c4 {[%clk 00:00:09]} Rae8 {[%clk 00:00:16]} {[%emt 00:00:02]} 36.
Rb3 {[%clk 00:00:10]} R8e7 {[%clk 00:00:17]} {[%emt 00:00:01]} 37. Rb6 {[%clk
00:00:12]} Rg5 {[%clk 00:00:17]} {[%emt 00:00:02]} 38. Rxd6 {[%clk 00:00:10]}
{[%emt 00:00:04]} Nxh5 {[%clk 00:00:11]} {[%emt 00:00:07]} 39. Rd8+ {[%clk
00:00:07]} {[%emt 00:00:05]} Kh7 {[%clk 00:00:11]} {[%emt 00:00:02]} 40. d6
{[%clk 00:00:08]} Rxg3 {[%clk 00:00:07]} {[%emt 00:00:06]} 41. Rh1 {[%clk
00:00:03]} {[%emt 00:00:07]} Re5 {[%clk 00:00:05]} {[%emt 00:00:04]} 42. d7
{[%clk 00:00:05]} {[%emt 00:00:01]} Rd3 {[%clk 00:00:06]} 43. Re8 {[%clk
00:00:04]} {[%emt 00:00:04]} Rxd7 {[%clk 00:00:05]} {[%emt 00:00:03]} 44. Rxe5
{[%clk 00:00:05]} Nf4 {[%clk 00:00:06]} 45. Rxc5 {[%clk 00:00:05]} {[%emt
00:00:01]} Rf7 {[%clk 00:00:05]} {[%emt 00:00:03]} 46. Re5 {[%clk 00:00:03]}
{[%emt 00:00:04]} h5 {[%clk 00:00:05]} {[%emt 00:00:02]} 47. b4 {[%clk
00:00:04]} Kh6 {[%clk 00:00:06]} {[%emt 00:00:01]} 48. Rd1 {[%clk 00:00:04]}
{[%emt 00:00:02]} h4 {[%clk 00:00:05]} {[%emt 00:00:03]} 49. b5 {[%clk
00:00:06]} h3 {[%clk 00:00:06]} {[%emt 00:00:01]} 50. b6 {[%clk 00:00:05]}
{[%emt 00:00:03]} g5 {[%clk 00:00:05]} {[%emt 00:00:02]} 51. Re8 {[%clk
00:00:05]} {[%emt 00:00:02]} g4 {[%clk 00:00:05]} {[%emt 00:00:02]} 52. Rg8
{[%clk 00:00:05]} {[%emt 00:00:02]} Ng6 {[%clk 00:00:06]} 53. Rc8 {[%clk
00:00:04]} {[%emt 00:00:03]} g3 {[%clk 00:00:06]} {[%emt 00:00:02]} 54. Rc7
{[%clk 00:00:05]} {[%emt 00:00:01]} Rf2 {[%clk 00:00:05]} {[%emt 00:00:03]} 55.
Rxb7 {[%clk 00:00:04]} {[%emt 00:00:03]} g2 {[%clk 00:00:06]} 56. Rbd7 {[%clk
00:00:03]} {[%emt 00:00:03]} Rf1 {[%clk 00:00:07]} {[%emt 00:00:01]} 57. b7
{[%clk 00:00:04]} g1=Q {[%clk 00:00:07]} {[%emt 00:00:01]} 58. Rxf1 {[%clk
00:00:03]} {[%emt 00:00:03]} Qxf1+ {[%clk 00:00:09]} {[%emt 00:00:01]} 59. Kc2
{[%clk 00:00:00]} {[%emt 00:00:01]} 0-1

[Event "Grandmaster Triathlon - Blitz (GM1)"]
[Site "Biel, Switzerland"]
[Date "2026.07.19"]
[Round "4.2"]
[White "Erdogmus, Yagiz Kaan"]
[Black "Bluebaum, Matthias"]
[Result "1-0"]
[TimeControl "3 min + 2 sec"]
[WhiteTitle "-"]
[BlackTitle "-"]
[WhiteFideId "44599790"]
[BlackFideId "24651516"]
[WhiteElo "2546"]
[BlackElo "2634"]

1. e4 {[%clk 00:03:03]} {[%emt 00:09:31]} e6 {[%clk 00:03:03]} {[%emt
00:00:01]} 2. d4 {[%clk 00:03:02]} {[%emt 00:00:03]} d5 {[%clk 00:03:04]}
{[%emt 00:00:01]} 3. exd5 {[%clk 00:03:03]} exd5 {[%clk 00:03:06]} {[%emt
00:00:01]} 4. Bf4 {[%clk 00:03:04]} Bd6 {[%clk 00:03:04]} {[%emt 00:00:04]} 5.
Qd2 {[%clk 00:03:06]} Nf6 {[%clk 00:03:04]} {[%emt 00:00:02]} 6. Nc3 {[%clk
00:03:07]} O-O {[%clk 00:03:04]} {[%emt 00:00:02]} 7. Bd3 {[%clk 00:03:00]}
{[%emt 00:00:09]} c6 {[%clk 00:02:53]} {[%emt 00:00:13]} 8. Nge2 {[%clk
00:03:00]} {[%emt 00:00:02]} a5 {[%clk 00:02:53]} {[%emt 00:00:02]} 9. f3
{[%clk 00:02:38]} {[%emt 00:00:24]} Ne8 {[%clk 00:02:29]} {[%emt 00:00:26]} 10.
O-O {[%clk 00:02:24]} {[%emt 00:00:16]} Na6 {[%clk 00:02:18]} {[%emt 00:00:13]}
11. a3 {[%clk 00:01:41]} {[%emt 00:00:45]} Nac7 {[%clk 00:02:07]} {[%emt
00:00:13]} 12. Bxd6 {[%clk 00:00:44]} {[%emt 00:00:58]} Nxd6 {[%clk 00:02:08]}
{[%emt 00:00:01]} 13. Ng3 {[%clk 00:00:46]} Ne6 {[%clk 00:02:02]} {[%emt
00:00:08]} 14. Nce2 {[%clk 00:00:47]} Qh4 {[%clk 00:01:32]} {[%emt 00:00:32]}
15. c3 {[%clk 00:00:44]} {[%emt 00:00:05]} f5 {[%clk 00:01:33]} {[%emt
00:00:01]} 16. f4 {[%clk 00:00:27]} {[%emt 00:00:19]} Ne4 {[%clk 00:01:34]} 17.
Bxe4 {[%clk 00:00:28]} fxe4 {[%clk 00:01:33]} {[%emt 00:00:03]} 18. f5 {[%clk
00:00:24]} {[%emt 00:00:05]} Qg5 {[%clk 00:01:17]} {[%emt 00:00:18]} 19. Qxg5
{[%clk 00:00:13]} {[%emt 00:00:13]} Nxg5 {[%clk 00:01:18]} {[%emt 00:00:01]} 20.
c4 {[%clk 00:00:12]} {[%emt 00:00:03]} b6 {[%clk 00:01:02]} {[%emt 00:00:17]}
21. cxd5 {[%clk 00:00:11]} {[%emt 00:00:04]} cxd5 {[%clk 00:01:04]} 22. Nf4
{[%clk 00:00:10]} {[%emt 00:00:02]} Ba6 {[%clk 00:00:53]} {[%emt 00:00:12]} 23.
Rfc1 {[%clk 00:00:10]} {[%emt 00:00:02]} Bc4 {[%clk 00:00:45]} {[%emt
00:00:11]} 24. h4 {[%clk 00:00:09]} {[%emt 00:00:03]} Nf7 {[%clk 00:00:46]} 25.
Ne6 {[%clk 00:00:09]} {[%emt 00:00:01]} Rfc8 {[%clk 00:00:46]} {[%emt
00:00:02]} 26. Nh5 {[%clk 00:00:07]} {[%emt 00:00:04]} Nd6 {[%clk 00:00:36]}
{[%emt 00:00:12]} 27. Nexg7 {[%clk 00:00:07]} {[%emt 00:00:02]} Be2 {[%clk
00:00:27]} {[%emt 00:00:11]} 28. f6 {[%clk 00:00:06]} {[%emt 00:00:03]} Kf7
{[%clk 00:00:27]} {[%emt 00:00:02]} 29. Nf4 {[%clk 00:00:07]} Bc4 {[%clk
00:00:28]} {[%emt 00:00:01]} 30. Ngh5 {[%clk 00:00:06]} {[%emt 00:00:03]} Rg8
{[%clk 00:00:28]} {[%emt 00:00:02]} 31. b3 {[%clk 00:00:06]} b5 {[%clk
00:00:15]} {[%emt 00:00:16]} 32. Rab1 {[%clk 00:00:06]} {[%emt 00:00:02]} Rab8
{[%clk 00:00:14]} {[%emt 00:00:04]} 33. bxc4 {[%clk 00:00:06]} {[%emt
00:00:01]} dxc4 {[%clk 00:00:15]} 34. Nd5 {[%clk 00:00:07]} {[%emt 00:00:01]}
Nf5 {[%clk 00:00:14]} {[%emt 00:00:03]} 35. Re1 {[%clk 00:00:06]} {[%emt
00:00:03]} e3 {[%clk 00:00:11]} {[%emt 00:00:06]} 36. Nxe3 {[%clk 00:00:06]}
{[%emt 00:00:02]} Nxh4 {[%clk 00:00:12]} 37. Kf2 {[%clk 00:00:06]} {[%emt
00:00:02]} Rg5 {[%clk 00:00:13]} 38. Nf4 {[%clk 00:00:07]} {[%emt 00:00:01]} c3
{[%clk 00:00:10]} {[%emt 00:00:05]} 39. Ned5 {[%clk 00:00:07]} {[%emt
00:00:01]} Nf5 {[%clk 00:00:10]} {[%emt 00:00:02]} 40. Nxc3 {[%clk 00:00:07]}
{[%emt 00:00:02]} Nxd4 {[%clk 00:00:11]} {[%emt 00:00:01]} 41. Ncd5 {[%clk
00:00:07]} {[%emt 00:00:03]} Nf5 {[%clk 00:00:11]} {[%emt 00:00:02]} 42. Rbc1
{[%clk 00:00:08]} Rb7 {[%clk 00:00:10]} {[%emt 00:00:03]} 43. Re5 {[%clk
00:00:08]} b4 {[%clk 00:00:11]} {[%emt 00:00:02]} 44. axb4 {[%clk 00:00:09]}
{[%emt 00:00:01]} axb4 {[%clk 00:00:12]} 45. Ne6 {[%clk 00:00:09]} {[%emt
00:00:01]} Rg8 {[%clk 00:00:09]} {[%emt 00:00:05]} 46. Rh1 {[%clk 00:00:06]}
{[%emt 00:00:05]} h6 {[%clk 00:00:10]} {[%emt 00:00:02]} 47. Nef4 {[%clk
00:00:06]} {[%emt 00:00:02]} Rg5 {[%clk 00:00:08]} {[%emt 00:00:04]} 48. Rxh6
{[%clk 00:00:05]} {[%emt 00:00:03]} Rxg2+ {[%clk 00:00:06]} {[%emt 00:00:04]}
49. Kxg2 {[%clk 00:00:05]} {[%emt 00:00:02]} Nxh6 {[%clk 00:00:07]} {[%emt
00:00:02]} 50. Rg5 {[%clk 00:00:06]} Rb8 {[%clk 00:00:03]} {[%emt 00:00:07]} 51.
Rg7+ {[%clk 00:00:07]} 1-0

[Event "Grandmaster Triathlon - Blitz (GM1)"]
[Site "Biel, Switzerland"]
[Date "2026.07.19"]
[Round "4.3"]
[White "Suleymanli, Aydin"]
[Black "Le, Quang Liem"]
[Result "1-0"]
[TimeControl "3 min + 2 sec"]
[WhiteTitle "-"]
[BlackTitle "-"]
[WhiteFideId "13413937"]
[BlackFideId "12401137"]
[WhiteElo "2559"]
[BlackElo "2690"]

1. d4 {[%clk 00:03:02]} {[%emt 00:00:01]} d5 {[%clk 00:03:04]} 2. c4 {[%clk
00:03:02]} {[%emt 00:00:02]} e6 {[%clk 00:03:04]} 3. Nc3 {[%clk 00:03:02]}
{[%emt 00:00:03]} Be7 {[%clk 00:03:05]} {[%emt 00:00:02]} 4. Nf3 {[%clk
00:02:58]} {[%emt 00:00:06]} Nf6 {[%clk 00:03:05]} {[%emt 00:00:01]} 5. cxd5
{[%clk 00:02:58]} {[%emt 00:00:02]} exd5 {[%clk 00:03:05]} {[%emt 00:00:02]} 6.
Bf4 {[%clk 00:02:54]} {[%emt 00:00:06]} c6 {[%clk 00:03:06]} {[%emt 00:00:02]}
7. h3 {[%clk 00:02:50]} {[%emt 00:00:06]} Bf5 {[%clk 00:02:58]} {[%emt
00:00:10]} 8. g4 {[%clk 00:02:46]} {[%emt 00:00:06]} Bg6 {[%clk 00:02:55]}
{[%emt 00:00:05]} 9. Ne5 {[%clk 00:02:47]} {[%emt 00:00:01]} Nbd7 {[%clk
00:02:37]} {[%emt 00:00:20]} 10. Nxg6 {[%clk 00:02:45]} {[%emt 00:00:03]} hxg6
{[%clk 00:02:37]} {[%emt 00:00:02]} 11. Bg2 {[%clk 00:02:46]} {[%emt 00:00:01]}
Nb6 {[%clk 00:02:35]} {[%emt 00:00:05]} 12. Qb3 {[%clk 00:02:34]} {[%emt
00:00:14]} Bd6 {[%clk 00:02:27]} {[%emt 00:00:10]} 13. Bg5 {[%clk 00:02:34]}
Qc7 {[%clk 00:02:19]} {[%emt 00:00:10]} 14. Rc1 {[%clk 00:02:35]} {[%emt
00:00:01]} Bf4 {[%clk 00:01:58]} {[%emt 00:00:24]} 15. Bxf4 {[%clk 00:02:25]}
{[%emt 00:00:12]} Qxf4 {[%clk 00:01:58]} {[%emt 00:00:02]} 16. e3 {[%clk
00:02:26]} Qd6 {[%clk 00:01:59]} {[%emt 00:00:01]} 17. a4 {[%clk 00:02:25]}
{[%emt 00:00:03]} Rb8 {[%clk 00:01:53]} {[%emt 00:00:08]} 18. a5 {[%clk
00:02:10]} {[%emt 00:00:17]} Nc4 {[%clk 00:01:50]} {[%emt 00:00:05]} 19. Bf1
{[%clk 00:00:59]} {[%emt 00:01:13]} Nxa5 {[%clk 00:01:35]} {[%emt 00:00:18]} 20.
Qa4 {[%clk 00:01:00]} b6 {[%clk 00:01:36]} 21. b4 {[%clk 00:00:52]} {[%emt
00:00:09]} Nc4 {[%clk 00:01:35]} {[%emt 00:00:03]} 22. b5 {[%clk 00:00:52]}
{[%emt 00:00:03]} O-O {[%clk 00:01:21]} {[%emt 00:00:16]} 23. bxc6 {[%clk
00:00:52]} {[%emt 00:00:02]} Rfc8 {[%clk 00:01:19]} {[%emt 00:00:04]} 24. g5
{[%clk 00:00:45]} {[%emt 00:00:09]} Ne8 {[%clk 00:01:12]} {[%emt 00:00:09]} 25.
Bg2 {[%clk 00:00:47]} {[%emt 00:00:01]} Nc7 {[%clk 00:01:06]} {[%emt 00:00:08]}
26. Nxd5 {[%clk 00:00:40]} {[%emt 00:00:08]} Nb2 {[%clk 00:00:22]} {[%emt
00:00:46]} 27. Qb3 {[%clk 00:00:38]} {[%emt 00:00:04]} Nxd5 {[%clk 00:00:23]}
{[%emt 00:00:02]} 28. Qxd5 {[%clk 00:00:32]} {[%emt 00:00:08]} Nd3+ {[%clk
00:00:20]} {[%emt 00:00:04]} 29. Kd2 {[%clk 00:00:30]} {[%emt 00:00:04]} Qxd5
{[%clk 00:00:21]} {[%emt 00:00:02]} 30. Bxd5 {[%clk 00:00:29]} {[%emt
00:00:03]} Nxc1 {[%clk 00:00:22]} {[%emt 00:00:01]} 31. Rxc1 {[%clk 00:00:29]}
{[%emt 00:00:01]} Rc7 {[%clk 00:00:23]} 32. f4 {[%clk 00:00:18]} {[%emt
00:00:13]} Kf8 {[%clk 00:00:24]} {[%emt 00:00:01]} 33. Bg2 {[%clk 00:00:15]}
{[%emt 00:00:05]} Ke7 {[%clk 00:00:14]} {[%emt 00:00:12]} 34. e4 {[%clk
00:00:15]} {[%emt 00:00:02]} f6 {[%clk 00:00:09]} {[%emt 00:00:07]} 35. e5
{[%clk 00:00:14]} {[%emt 00:00:03]} fxe5 {[%clk 00:00:08]} {[%emt 00:00:03]} 36.
fxe5 {[%clk 00:00:15]} {[%emt 00:00:01]} Ke6 {[%clk 00:00:07]} {[%emt
00:00:03]} 37. Ke3 {[%clk 00:00:16]} Rh8 {[%clk 00:00:08]} {[%emt 00:00:01]} 38.
Rf1 {[%clk 00:00:09]} {[%emt 00:00:09]} b5 {[%clk 00:00:06]} {[%emt 00:00:04]}
39. Rf4 {[%clk 00:00:05]} {[%emt 00:00:06]} b4 {[%clk 00:00:05]} {[%emt
00:00:04]} 40. Ke4 {[%clk 00:00:05]} Rd8 {[%clk 00:00:06]} 41. Kd3 {[%clk
00:00:03]} {[%emt 00:00:05]} b3 {[%clk 00:00:06]} {[%emt 00:00:02]} 42. Kc3
{[%clk 00:00:04]} Rb8 {[%clk 00:00:07]} 43. Kb2 {[%clk 00:00:05]} Rb6 {[%clk
00:00:08]} {[%emt 00:00:02]} 44. Bf3 {[%clk 00:00:06]} {[%emt 00:00:01]} a5
{[%clk 00:00:09]} {[%emt 00:00:01]} 45. Rf8 {[%clk 00:00:05]} {[%emt 00:00:03]}
Rb4 {[%clk 00:00:09]} {[%emt 00:00:02]} 46. d5+ {[%clk 00:00:05]} {[%emt
00:00:02]} Kxe5 {[%clk 00:00:10]} {[%emt 00:00:01]} 47. Re8+ {[%clk 00:00:06]}
Kd6 {[%clk 00:00:11]} 48. Re6+ {[%clk 00:00:07]} Kc5 {[%clk 00:00:12]} {[%emt
00:00:02]} 49. d6 {[%clk 00:00:08]} Rxc6 {[%clk 00:00:11]} {[%emt 00:00:02]} 50.
d7 {[%clk 00:00:09]} {[%emt 00:00:01]} Rxe6 {[%clk 00:00:10]} {[%emt 00:00:03]}
51. d8=Q {[%emt 00:00:02]} Rbb6 {[%clk 00:00:08]} {[%emt 00:00:04]} 52. Qc7+
{[%clk 00:00:09]} {[%emt 00:00:03]} Kd4 {[%clk 00:00:09]} {[%emt 00:00:01]} 53.
Qc3# {[%clk 00:00:10]} {[%emt 00:00:01]} Kd5 {[%emt 00:00:04]} 1-0